{"text_format":"1","workbook":"xlsx","n_sheets":2,"sheets":["прил 2","Приложение"],"not_rendered":{"charts":0,"images":0,"macros":1,"external_links":0,"defined_names":18,"comments":0,"pivot_tables":0},"unopened":[],"bounds":{"document_bytes":16777216,"sheet_cells":100000,"rows_first":2000,"rows_last":500,"rows_between":2000,"halvings":0,"cell_chars":16384,"cell_head_chars":4096},"cells_cut":0,"cells_raw":0,"read":"whole","date_system":"1900"}

{"sheet":"прил 2","index":0,"n_rows":65,"n_cols":25,"rows_kept":65,"cut":false,"hidden":false,"merged":[[35,14,35,18],[5,9,5,13],[8,2,8,4],[8,5,8,18],[5,7,5,8],[6,2,6,8],[3,16,3,18],[64,2,64,3],[60,5,60,7],[60,9,60,14],[51,9,51,13],[51,14,51,18],[52,2,52,7],[52,9,52,13],[52,14,52,18],[58,14,58,18],[63,9,63,14],[15,10,15,11],[16,9,16,13],[7,5,7,18],[63,5,63,7],[53,2,53,7],[53,9,53,13],[53,14,53,18],[43,2,43,7],[43,14,43,18],[37,14,37,18],[20,14,20,18],[48,2,48,7],[46,2,46,7],[46,9,46,13],[43,9,43,13],[42,2,42,7],[39,2,39,7],[42,9,42,13],[40,14,40,18],[39,9,39,13],[41,2,41,7],[41,9,41,13],[39,14,39,18],[42,14,42,18],[40,2,40,7],[26,2,26,7],[26,9,26,13],[31,9,31,13],[29,2,29,7],[33,14,33,18],[35,2,35,7],[38,9,38,13],[37,2,37,7],[38,2,38,7],[13,2,13,4],[15,8,16,8],[12,5,12,18],[10,5,10,18],[62,5,62,7],[62,9,62,14],[55,14,55,18],[56,2,56,7],[56,9,56,13],[60,2,60,3],[58,2,58,7],[58,9,58,13],[57,2,57,7],[56,14,56,18],[49,9,49,13],[49,14,49,18],[50,9,50,13],[57,14,57,18],[54,14,54,18],[61,9,61,14],[61,5,61,7],[57,9,57,13],[48,14,48,18],[55,9,55,13],[50,2,50,7],[44,2,44,7],[47,2,47,7],[49,2,49,7],[45,2,45,7],[44,9,44,13],[46,14,46,18],[47,14,47,18],[45,14,45,18],[48,9,48,13],[45,9,45,13],[50,14,50,18],[54,2,54,7],[54,9,54,13],[44,14,44,18],[47,9,47,13],[55,2,55,7],[51,2,51,7],[18,14,18,18],[38,14,38,18],[37,9,37,13],[27,14,27,18],[40,9,40,13],[36,2,36,7],[53,24,53,27],[41,14,41,18],[28,14,28,18],[32,2,32,7],[32,9,32,13],[33,2,33,7],[30,14,30,18],[31,14,31,18],[33,9,33,13],[36,14,36,18],[36,9,36,13],[34,14,34,18],[35,9,35,13],[30,2,30,7],[30,9,30,13],[31,2,31,7],[34,9,34,13],[34,2,34,7],[32,14,32,18],[23,2,23,7],[25,9,25,13],[25,14,25,18],[24,9,24,13],[24,14,24,18],[24,2,24,7],[26,14,26,18],[29,9,29,13],[29,14,29,18],[27,2,27,7],[27,9,27,13],[28,2,28,7],[28,9,28,13],[9,2,9,4],[22,2,22,7],[18,2,18,7],[18,9,18,13],[21,2,21,7],[19,2,19,7],[20,2,20,7],[25,2,25,7],[23,9,23,13],[62,2,62,4],[10,2,10,4],[2,10,2,18],[23,14,23,18],[4,2,4,18],[21,9,21,13],[21,14,21,18],[22,9,22,13],[22,14,22,18],[9,5,9,18],[15,15,15,16],[16,14,16,18],[12,2,12,4],[19,14,19,18],[19,9,19,13],[17,9,17,13],[17,14,17,18],[20,9,20,13],[7,2,7,4],[11,2,11,4],[11,5,11,18],[13,5,13,18],[15,2,16,7],[17,2,17,7]]}
[]
[]
[null,null,null,null,null,null,null,null,null,null,"Приложение 2\nк Национальному стандарту бухгалтерского учета и отчетности «Индивидуальная бухгалтерская отчетность» \n12.12.2016 № 104"]
[null,null,null,null,null,null,null,null,null,null,null,null,null,null,null,null,"Форма"]
[null,null,"ОТЧЕТ\nо прибылях и убытках"]
[null,null,null,null,"за","январь -","-","декабрь",null,"2022 г."]
[]
[null,null,"Организация",null,null,"ОАО \"Универмаг \"Центральный\""]
[null,null,"Учетный номер плательщика",null,null,70002659]
[null,null,"Вид экономической деятельности",null,null,"Розничная торговля"]
[null,null,"Организационно-правовая форма",null,null,"Открытое акционерное общество"]
[null,null,"Орган управления",null,null,"Управление торговли и услуг Могилевского горисполкома"]
[null,null,"Единица измерения",null,null,"тыс. руб."]
[null,null,"Адрес",null,null,"212030 г. Могилев, ул. Первомайская, 61"]
[]
[null,null,"Наименование показателей",null,null,null,null,null,"Код строки","За",{"$f":"F6","v":"январь -"},null,"-",{"$f":"H6","v":"декабрь"},"За",{"$f":"F6","v":"январь -"},null,"-",{"$f":"H6","v":"декабрь"}]
[null,null,null,null,null,null,null,null,null,{"$f":"J6","v":"2022 г."},null,null,null,null,{"$f":"DATE(YEAR(J17),MONTH(0),DAY(0))","v":{"$error":"#VALUE!"}}]
[null,null,1,null,null,null,null,null,2,3,null,null,null,null,4]
[null,null,"Выручка от реализации продукции, товаров, работ, услуг",null,null,null,null,null,"010",25878,null,null,null,null,21593,null,null,null,null,null,null,"90 (90-1, 90-2, 90-3)"]
[null,null,"Себестоимость реализованной продукции, товаров, \nработ, услуг",null,null,null,null,null,"020",18068,null,null,null,null,14681,null,null,null,null,null,null,"90 (90-4)"]
[null,null,"Валовая прибыль",null,null,null,null,null,"030",{"$f":"J19-J20","v":7810},null,null,null,null,{"$f":"O19-O20","v":6912}]
[null,null,"Управленческие расходы",null,null,null,null,null,"040",1200,null,null,null,null,980,null,null,null,null,null,null,"90 (90-5)"]
[null,null,"Расходы на реализацию",null,null,null,null,null,"050",5561,null,null,null,null,5207,null,null,null,null,null,null,"90 (90-6)"]
[null,null,"Прибыль (убыток) от реализации продукции, товаров, работ, услуг",null,null,null,null,null,"060",{"$f":"J21-J22-J23","v":1049},null,null,null,null,{"$f":"O21-O22-O23","v":725}]
[null,null,"Прочие доходы по текущей деятельности",null,null,null,null,null,"070",446,null,null,null,null,515,null,null,null,null,null,null,"90 (90-7, 90-8, 90-9)"]
[null,null,"Прочие расходы по текущей деятельности",null,null,null,null,null,"080",732,null,null,null,null,822,null,null,null,null,null,null,"90 (90-10)"]
[null,null,"Прибыль (убыток) от текущей деятельности ",null,null,null,null,null,"090",{"$f":"J24+J25-J26","v":763},null,null,null,null,{"$f":"O24+O25-O26","v":418}]
[null,null,"Доходы по инвестиционной деятельности",null,null,null,null,null,100,{"$f":"SUM(J30:N33)","v":343},null,null,null,null,{"$f":"SUM(O30:S33)","v":163},null,null,null,null,null,null,"91 (91-1, 91-2, 91-3)"]
[null,null,"        в том числе:"]
[null,null,"    доходы от выбытия основных средств, нематериальных \n    активов и других долгосрочных активов",null,null,null,null,null,101,11,null,null,null,null,109]
[null,null,"    доходы от участия в уставных капиталах других \n    организаций",null,null,null,null,null,102,1,null,null,null,null,7]
[null,null,"    проценты к получению",null,null,null,null,null,103,11,null,null,null,null,29]
[null,null,"    прочие доходы по инвестиционной деятельности",null,null,null,null,null,104,320,null,null,null,null,18]
[null,null,"Расходы по инвестиционной деятельности",null,null,null,null,null,110,{"$f":"SUM(J36:N37)","v":301},null,null,null,null,{"$f":"SUM(O36:S37)","v":110},null,null,null,null,null,null,"91 (91-4)"]
[null,null,"        в том числе:"]
[null,null,"    расходы от выбытия основных средств, нематериальных\n    активов и других долгосрочных активов",null,null,null,null,null,111,16,null,null,null,null,104]
[null,null,"    прочие расходы по инвестиционной деятельности",null,null,null,null,null,112,285,null,null,null,null,6]
[null,null,"Доходы по финансовой деятельности",null,null,null,null,null,120,{"$f":"SUM(J39:N41)","v":163},null,null,null,null,{"$f":"SUM(O40:S41)","v":31},null,null,null,null,null,null,"91 (91-1, 91-2, 91-3)"]
[null,null,"        в том числе:"]
[null,null,"    курсовые разницы от пересчета активов и обязательств",null,null,null,null,null,121,163,null,null,null,null,29]
[null,null,"    прочие доходы по финансовой деятельности",null,null,null,null,null,122,0,null,null,null,null,2]
[null,null,"Расходы по финансовой деятельности",null,null,null,null,null,130,{"$f":"J46+J45+J44","v":170},null,null,null,null,{"$f":"SUM(O44:S46)","v":64},null,null,null,null,null,null,"91 (91-4)"]
[null,null,"        в том числе:"]
[null,null,"    проценты к уплате",null,null,null,null,null,131,21,null,null,null,null,33]
[null,null,"    курсовые разницы от пересчета активов и обязательств",null,null,null,null,null,132,144,null,null,null,null,25]
[null,null,"    прочие расходы по финансовой деятельности",null,null,null,null,null,133,5,null,null,null,null,6]
[null,null,"Прибыль (убыток) от инвестиционной и финансовой деятельности",null,null,null,null,null,140,{"$f":"J28-J34+J38-J42","v":35},null,null,null,null,{"$f":"O28-O34+O38-O42","v":20}]
[null,null,"Прибыль (убыток) до налогообложения",null,null,null,null,null,150,{"$f":"J27+J47","v":798},null,null,null,null,{"$f":"O27+O47","v":438}]
[null,null,"Налог на прибыль ",null,null,null,null,null,160,206,null,null,null,null,133,null,null,null,null,null,null,"99, 68"]
[null,null,"Изменение отложенных налоговых активов",null,null,null,null,null,170,0,null,null,null,null,0,null,null,null,null,null,null,"09"]
[null,null,"Изменение отложенных налоговых обязательств",null,null,null,null,null,180,0,null,null,null,null,0,null,null,null,null,null,null,"65"]
[null,null,"Прочие налоги и сборы, исчисляемые из прибыли (дохода)",null,null,null,null,null,190,0,null,null,null,null,1,null,null,null,null,null,null,"99, 68"]
[null,null,"Прочие платежи, исчисляемые из прибыли (дохода)",null,null,null,null,null,200,0,null,null,null,null,0,null,null,null,null,null,null,"99, 68"]
[null,null,"Чистая прибыль (убыток)",null,null,null,null,null,210,{"$f":"J48-J49+J50+J51-J52-J53","v":592},null,null,null,null,305,null,null,null,null,null,null,null,{"$f":"IF(H6=\"декабрь\",\" \",\"≠\")","v":" "},{"$f":"IF(H6=\"декабрь\",\" \",#REF!)","v":" "},{"$f":"IF(H6=\"декабрь\",\" \",\"стр.210 гр.3 Отчета ≠ стр.470 гр.3 ББ\")","v":" "}]
[null,null,"Результат от переоценки долгосрочных активов, \nне включаемый в чистую прибыль (убыток)",null,null,null,null,null,220,2792,null,null,null,null,0,null,null,null,null,null,null,"83"]
[null,null,"Результат от прочих операций, не включаемый \nв чистую прибыль (убыток)",null,null,null,null,null,230,0,null,null,null,null,0]
[null,null,"Совокупная прибыль (убыток)",null,null,null,null,null,240,{"$f":"J54+J55+J56","v":3384},null,null,null,null,{"$f":"O54+O55+O56","v":305}]
[null,null,"Базовая прибыль (убыток) на акцию",null,null,null,null,null,250,0,null,null,null,null,0]
[null,null,"Разводненная прибыль (убыток) на акцию",null,null,null,null,null,260,0,null,null,null,null,0]
[]
[null,null,"Руководитель",null,null,null,null,null,null,"В.С.Амбарцумян"]
[null,null,"           ",null,null,"(подпись)",null,null,null,"(инициалы, фамилия)"]
[null,null,"Главный бухгалтер ",null,null,null,null,null,null,"М.А. Краснова"]
[null,null,null,null,null,"(подпись)",null,null,null,"(инициалы, фамилия)"]
[null,null,"22 февраля 2023 г."]

{"sheet":"Приложение","index":1,"n_rows":75,"n_cols":4,"rows_kept":75,"cut":false,"hidden":true,"merged":[]}
[{"$f":"ROW()","v":1},"А. Сельское, лесное и рыбное хозяйство, 011-017",1.5,0.2]
[{"$f":"ROW()","v":2},"А. Сельское, лесное и рыбное хозяйство, 021-024",1.5,0.2]
[{"$f":"ROW()","v":3},"А. Сельское, лесное и рыбное хозяйство, 031-032",1.5,0.2]
[{"$f":"ROW()","v":4},"В. Горнодобывающая промышленность, 051-052, 061-062, 071-072, 081, 089, 091",1.7,0.3]
[{"$f":"ROW()","v":5},"В. Горнодобывающая промышленность, 099",1.2,0.15]
[{"$f":"ROW()","v":6},"С. Обрабатывающая промышленность, 101, 104-109",1.3,0.2]
[{"$f":"ROW()","v":7},"С. Обрабатывающая промышленность, 102-103",1.7,0.3]
[{"$f":"ROW()","v":8},"С. Обрабатывающая промышленность, 110, 120",1.7,0.3]
[{"$f":"ROW()","v":9},"С. Обрабатывающая промышленность, 131-133, 139, 141-143, 151-152",1.3,0.2]
[{"$f":"ROW()","v":10},"С. Обрабатывающая промышленность, 161-162, 171-172, 181-182",1.3,0.2]
[{"$f":"ROW()","v":11},"С. Обрабатывающая промышленность, 191",1.4,0.2]
[{"$f":"ROW()","v":12},"С. Обрабатывающая промышленность, 192",1.7,0.3]
[{"$f":"ROW()","v":13},"С. Обрабатывающая промышленность, подкласс 19201",1.4,0.2]
[{"$f":"ROW()","v":14},"С. Обрабатывающая промышленность, 201-206, 211-212",1.4,0.2]
[{"$f":"ROW()","v":15},"С. Обрабатывающая промышленность, 221-222",1.3,0.2]
[{"$f":"ROW()","v":16},"С. Обрабатывающая промышленность, 231-237, 239",1.2,0.15]
[{"$f":"ROW()","v":17},"С. Обрабатывающая промышленность, 241, 242, 244, 245",1.3,0.2]
[{"$f":"ROW()","v":18},"С. Обрабатывающая промышленность, 243",1.2,0.15]
[{"$f":"ROW()","v":19},"С. Обрабатывающая промышленность, 251",1.2,0.15]
[{"$f":"ROW()","v":20},"С. Обрабатывающая промышленность, 252-257, 259",1.3,0.2]
[{"$f":"ROW()","v":21},"С. Обрабатывающая промышленность, 261-267",1.3,0.2]
[{"$f":"ROW()","v":22},"С. Обрабатывающая промышленность, 268",1.4,0.2]
[{"$f":"ROW()","v":23},"С. Обрабатывающая промышленность, 271-275, 279",1.3,0.2]
[{"$f":"ROW()","v":24},"С. Обрабатывающая промышленность, 281-282, 284, 289",1.3,0.2]
[{"$f":"ROW()","v":25},"С. Обрабатывающая промышленность, 283",1.6,0.1]
[{"$f":"ROW()","v":26},"С. Обрабатывающая промышленность, 291-293, 301-304, 309",1.3,0.2]
[{"$f":"ROW()","v":27},"С. Обрабатывающая промышленность, 310, 321-322, 324, 329",1.7,0.3]
[{"$f":"ROW()","v":28},"С. Обрабатывающая промышленность, 323, 325, 331-332",1.3,0.2]
[{"$f":"ROW()","v":29},"D. Снабжение электроэнергией, газом, паром, горячей водой и кондиционированным воздухом, 351",1.1000000000000001,0.25]
[{"$f":"ROW()","v":30},"D. Снабжение электроэнергией, газом, паром, горячей водой и кондиционированным воздухом, 352",1.01,0.3]
[{"$f":"ROW()","v":31},"D. Снабжение электроэнергией, газом, паром, горячей водой и кондиционированным воздухом, 353",1.1000000000000001,0.1]
[{"$f":"ROW()","v":32},"5. Е. Водоснабжение; сбор, обработка и удаление отходов, деятельность по ликвидации загрязнений, 360-370, 381-382, 390",1.1000000000000001,0.1]
[{"$f":"ROW()","v":33},"5. Е. Водоснабжение; сбор, обработка и удаление отходов, деятельность по ликвидации загрязнений, 383",1.7,0.3]
[{"$f":"ROW()","v":34},"6. F. Строительство, 411",1.1000000000000001,0.1]
[{"$f":"ROW()","v":35},"6. F. Строительство, 412, 421-422, 429, 431-433, 439",1.2,0.15]
[{"$f":"ROW()","v":36},"7. G. Оптовая и розничная торговля; ремонт автомобилей и мотоциклов, 451-454, 461-467, 469, 471-479",1,0.1]
[{"$f":"ROW()","v":37},"8. H. Транспортная деятельность, складирование, почтовая и курьерская деятельность, 491-495, 501-504, 511-512, 521-522",1.1499999999999999,0.15]
[{"$f":"ROW()","v":38},"8. H. Транспортная деятельность, складирование, почтовая и курьерская деятельность, 531-532",1,0.05]
[{"$f":"ROW()","v":39},"9. I. Услуги по временному проживанию и питанию, 551-553, 559",1.1000000000000001,0.1]
[{"$f":"ROW()","v":40},"9. I. Услуги по временному проживанию и питанию, 561-563",1,0.1]
[{"$f":"ROW()","v":41},"10. J. Информация и связь, 581",1.1000000000000001,0.15]
[{"$f":"ROW()","v":42},"10. J. Информация и связь, 582",1.3,0.2]
[{"$f":"ROW()","v":43},"10. J. Информация и связь, 591",1.1000000000000001,0.1]
[{"$f":"ROW()","v":44},"10. J. Информация и связь, 592",1.1000000000000001,0.15]
[{"$f":"ROW()","v":45},"10. J. Информация и связь, 601-602, 611-613, 619",1.1000000000000001,0.15]
[{"$f":"ROW()","v":46},"10. J. Информация и связь, 620, 631",1.3,0.2]
[{"$f":"ROW()","v":47},"10. J. Информация и связь, 639",1.1000000000000001,0.1]
[{"$f":"ROW()","v":48},"K. Финансовая и страховая деятельность, 641-643",1.5,0.2]
[{"$f":"ROW()","v":49},"K. Финансовая и страховая деятельность, 649",1.1000000000000001,0.1]
[{"$f":"ROW()","v":50},"K. Финансовая и страховая деятельность, 651-653, 661-663",1.5,0.2]
[{"$f":"ROW()","v":51},"L. Операции с недвижимым имуществом, 681-682",1.1000000000000001,0.1]
[{"$f":"ROW()","v":52},"L. Операции с недвижимым имуществом, 683",1,0.05]
[{"$f":"ROW()","v":53},"М. Профессиональная, научная и техническая деятельность, 691-692, 701-702, 711",1,0.05]
[{"$f":"ROW()","v":54},"М. Профессиональная, научная и техническая деятельность, 712",1.2,0.15]
[{"$f":"ROW()","v":55},"М. Профессиональная, научная и техническая деятельность, 721-722",1.1499999999999999,0.2]
[{"$f":"ROW()","v":56},"М. Профессиональная, научная и техническая деятельность, 731",1.2,0.15]
[{"$f":"ROW()","v":57},"М. Профессиональная, научная и техническая деятельность, 732",1,0.05]
[{"$f":"ROW()","v":58},"М. Профессиональная, научная и техническая деятельность, 741, 743, 749",1.2,0.15]
[{"$f":"ROW()","v":59},"М. Профессиональная, научная и техническая деятельность, 742",1.1000000000000001,0.1]
[{"$f":"ROW()","v":60},"М. Профессиональная, научная и техническая деятельность, 750",1.5,0.2]
[{"$f":"ROW()","v":61},"14. N. Деятельность в сфере административных и вспомогательных услуг, 771-773",1.1000000000000001,0.1]
[{"$f":"ROW()","v":62},"14. N. Деятельность в сфере административных и вспомогательных услуг, 774",1,0.05]
[{"$f":"ROW()","v":63},"14. N. Деятельность в сфере административных и вспомогательных услуг, 781-783",1.2,0.15]
[{"$f":"ROW()","v":64},"14. N. Деятельность в сфере административных и вспомогательных услуг, 791, 799",1.1499999999999999,0.15]
[{"$f":"ROW()","v":65},"14. N. Деятельность в сфере административных и вспомогательных услуг, 801-803",1.2,0.15]
[{"$f":"ROW()","v":66},"14. N. Деятельность в сфере административных и вспомогательных услуг, 811-812",1.1000000000000001,0.1]
[{"$f":"ROW()","v":67},"14. N. Деятельность в сфере административных и вспомогательных услуг, 813",1.5,0.2]
[{"$f":"ROW()","v":68},"14. N. Деятельность в сфере административных и вспомогательных услуг, 821-823, 829",1.2,0.15]
[{"$f":"ROW()","v":69},"15. Q. Здравоохранение и социальные услуги, 861",1.1000000000000001,0.1]
[{"$f":"ROW()","v":70},"16. R. Творчество, спорт, развлечения и отдых, 931",1.1000000000000001,0.1]
[{"$f":"ROW()","v":71},"17. S. Предоставление прочих видов услуг, 941-942, 949",1.1000000000000001,0.1]
[{"$f":"ROW()","v":72},"17. S. Предоставление прочих видов услуг, 951",1.3,0.2]
[{"$f":"ROW()","v":73},"17. S. Предоставление прочих видов услуг, 952",1,0.1]
[{"$f":"ROW()","v":74},"17. S. Предоставление прочих видов услуг, 960",1.1000000000000001,0.1]
[{"$f":"ROW()","v":75},"18. Прочие виды экономической деятельности",1.5,0.2]